Cogmind - Beta 13 @@@ ROGUE MODE // 2024.05.05 @ 19:50:29 Player: mag Result: Destroyed by as-05316 with Assembled Heavy Rifle Performance ------------- Evolutions (0) 0 Regions Visited (0) 0 Robots Destroyed (6) 30 Value Destroyed (17) 17 Prototype IDs (0) 0 Alien Tech Used (0) 0 Bonus (0) 0 TOTAL SCORE: 47 Bonus ------- None Cogmind --------- Core Integrity 0/250 Matter 300/300 Energy 250/250 System Corruption 5% Temperature Cool (0) Movement Rolling (100) Location -11/Scrapyard Parts ------- > --- POWER (1) -------- Ion Engine > --- PROPULSION (2) --- Compact Wheel > --- UTILITY (2) ------ Small Storage Unit Improved Terrain Scanner > --- WEAPON (2) ------- Medium Laser Mining Laser > --- INVENTORY (8) ---- Light Ion Engine Wheel Small Storage Unit Small Matter Pod (50) Peak State ------------ > --- POWER ------------ Ion Engine > --- PROPULSION ------- Wheel Compact Wheel > --- UTILITY ---------- Small Storage Unit Improved Terrain Scanner > --- WEAPON ----------- Medium Laser Mining Laser > --- INVENTORY -------- Light Ion Engine Wheel Small Storage Unit Small Matter Pod [Rating: 9] Favorites ----------- Power Light Ion Engine Engine Light Ion Engine Propulsion Light Treads Treads Light Treads Wheel Wheel Utility Small Storage Unit Device Improved Terrain Scanner Storage Small Storage Unit Weapon Medium Laser Energy Gun Medium Laser Ballistic Gun Assault Rifle Special Weapon Mining Laser Build | -11 ------- Run | Yrd Slots Evolved . | . Power . | . Propulsion . | . Utility . | . Weapon . | . Parts Attached 18 | 18 Power 3 | 3 Engine 3 | 3 Core . | . Reactor . | . Propulsion 5 | 5 Treads 2 | 2 Leg . | . Wheel 3 | 3 Hover . | . Flight . | . Utility 4 | 4 Device 1 | 1 Storage 3 | 3 Processor . | . Hackware . | . Protection . | . Artifact . | . Weapon 6 | 6 Energy Gun 2 | 2 Energy Cannon . | . Ballistic Gun 2 | 2 Ballistic Cannon . | . Launcher . | . Special Weapon 2 | 2 Impact Weapon . | . Slashing Weapon . | . Piercing Weapon . | . Special Melee Weapon . | . Unidentified Prototypes . | . Parts Lost 8 | 8 Power 1 | 1 Propulsion 3 | 3 Utility 1 | 1 Weapon 3 | 3 Highest Loss Streak 5 | 5 To Critical Strikes . | . Average Slot Usage (%) . | . Naked Turns . | . Heaviest Build 17 | 17 Greatest Support 40 | 40 Greatest Overweight (x) 3 | 3 Average Overweight (x) . | . Largest Inventory Capacity 8 | 8 Average Capacity 7 | 7 Most Carried 8 | 8 Average Carried 6 | 6 Final Capacity 8 | 8 Final Carried 4 | 4 Class Distribution -------------------- None Dominant Class ---------------- None Resources | -11 ----------- Run | Yrd Matter Collected 596 | 596 Remotely . | . Salvage Created 235 | 235 Parts 14 | 14 Haulers Intercepted . | . Recyclers Shooed . | . Parts Field Recycled . | . Retrieved Matter . | . Parts Self-Destructed . | . Prevented . | . Kills | -11 ------- Run | Yrd Combat Hostiles Destroyed 4 | 4 Guns 4 | 4 Classes Destroyed 4 | 4 Worker 4 | 4 Tunneler 1 | 1 Recycler 1 | 1 Assembled 4 | 4 Best Kill Streak 3 | 3 Combat Bots Only 3 | 3 Max Kills in Single Turn 1 | 1 Gunslinging . | . Exploded . | . Melee . | . Uniques/NPCs Destroyed . | . Combat | -11 -------- Run | Yrd Hostile Shots Fired 76 | 76 Missed 20 | 20 Damage Taken 1091 | 1091 Core 250 | 250 Absorbed by Shields . | . Core Remaining (%) . | . Volleys Fired 129 | 129 Largest 2 | 2 Hottest 150 | 150 Shots Fired 144 | 144 Gun 65 | 65 Cannon . | . Launcher . | . Special 79 | 79 Kinetic 24 | 24 Thermal 120 | 120 Explosive . | . Electromagnetic . | . Robot Hit Streak 8 | 8 Robot Miss Streak 5 | 5 Penetration Max . | . Secondary Targets . | . Shots Hit Robots 24 | 24 Core Hits 13 | 13 Critical Kills . | . Critical Parts Destroyed . | . Critical Strikes 2 | 2 Burn 2 | 2 Melee Attacks . | . Impact . | . Slashing . | . Piercing . | . Sneak Attacks . | . Combat Hostiles . | . Follow-up Attacks . | . Damage Inflicted 347 | 347 Guns 323 | 323 Cannons . | . Explosions . | . Melee . | . Ramming . | . Kinetic 85 | 85 Thermal 262 | 262 Explosive . | . Electromagnetic . | . Impact . | . Slashing . | . Piercing . | . Highest Corruption 5 | 5 Average Corruption 5 | 5 Corruption Purged . | . Corruption Blocked . | . Effects 61 | 61 Message Errors 14 | 14 Matter Fused 20 | 20 Heat Flow Errors 7 | 7 Energy Discharges 5 | 5 Data Loss (minor) 8 | 8 Data Loss (major) 1 | 1 Misfires 3 | 3 Alerts 1 | 1 Weapon Failures 2 | 2 Overload Shots . | . Overflow Damage 10 | 10 Projectiles 10 | 10 Explosions . | . Melee . | . Knockbacks . | . Impact . | . Kinetic . | . Secondary . | . Self-Inflicted Damage . | . Shots . | . Rammed . | . Targets Rammed . | . Kicked . | . Crushed . | . Highest Temperature 230 | 230 Average Temperature 45 | 45 Received Heat Transfer . | . Effects 1 | 1 Interference 1 | 1 Siege Activations . | . Robots Corrupted . | . Combat Hostiles . | . Parts Fried . | . Impact Corruptions . | . Robots Melted . | . Combat Hostiles . | . Parts Melted . | . Heat Transferred 901 | 901 Parts Sabotaged . | . Parts Stolen . | . Parts Stripped . | . Power Chain Reactions . | . Alert | -11 ------- Run | Yrd Peak Influence 30 | 30 Initial . | . Average 1 | 1 Maximum Alert Level . | . Low Security (%) 100 | 100 Level 1 . | . Level 2 . | . Level 3 . | . Level 4 . | . Level 5 . | . High Security . | . Max Security . | . Squads Dispatched . | . Investigation . | . Extermination . | . Reinforcement . | . Assault . | . Garrison . | . Intercept . | . Searches Triggered . | . Construction Impeded . | . Haulers Reinforced . | . Active Scanning Responses . | . Cargo Convoy Interrupts . | . Stealth | -11 --------- Run | Yrd Distress Signals . | . Communications Jammed . | . Distress Signals . | . Times Spotted 5 | 5 Peak Tracking Total 3 | 3 Tactical Retreats . | . Traps | -11 ------- Run | Yrd Traps Triggered . | . Indirectly . | . Trap Hack Attempts . | . Triggered . | . Disarmed . | . Reprogrammed . | . Reused . | . Traps Extracted . | . Installed . | . Triggered . | . Machines | -11 ---------- Run | Yrd Machines Disabled . | . Max in Single Turn . | . Machines Repaired . | . Machines Dismantled . | . Machines Sabotaged . | . Overloaded Fab Kills . | . Hacking | -11 --------- Run | Yrd Machines Accessed . | . Terminals . | . Fabricators . | . Repair Stations . | . Recycling Units . | . Scanalyzers . | . Garrison Access . | . Total Hacks . | . Successful . | . Failed . | . Catastrophic . | . Database Lockouts . | . Manual . | . Terminals . | . Fabricators . | . Repair Stations . | . Recycling Units . | . Scanalyzers . | . Garrison Access . | . Terminal Hacks . | . Fabricator Hacks . | . Repair Station Hacks . | . Recycling Unit Hacks . | . Scanalyzer . | . Garrison Access Hacks . | . Unauthorized Hacks . | . Terminals . | . Fabricators . | . Repair Stations . | . Recycling Units . | . Scanalyzers . | . Garrison Access . | . Data Cores Recovered . | . Used . | . Hacking Detections . | . Full Trace Events . | . Feedback Events . | . Feedback Blocked . | . Robot Schematics Acquired . | . Robots Built . | . Authchips . | . Time . | . Total Robot Build Rating . | . Part Schematics Acquired . | . Parts Built . | . Authchips . | . Time . | . Total Part Build Rating . | . Parts Repaired . | . Time . | . Parts Recycled . | . Recycled Matter . | . Retrieved Matter . | . Retrieved Components . | . Parts Scanalyzed . | . Part Schematics Acquired . | . Parts Damaged . | . Bothacking | -11 ------------ Run | Yrd Used RIF Installer . | . Robots Hacked . | . Non-combat . | . Combat . | . Robot Hacks Applied . | . Relay Couplers Released . | . Fabnet Peak Effective % . | . Robots Rewired . | . Allies Hacked . | . Hacks Repelled . | . Allies | -11 -------- Run | Yrd Total Allies . | . Largest Group . | . Highest-Rated Group . | . Highest-Rated Ally . | . Total Orders . | . Ally Attacks . | . Total Damage . | . Kills . | . Allies Corrupted . | . Allies Melted . | . Intel | -11 ------- Run | Yrd Robot Analysis Total . | . Derelict Logs Recovered . | . Drone Launches . | . Drone Recoveries . | . Exploration | -11 ------------- Run | Yrd Turns Passed 3727 | 3727 Spaces Moved 965 | 965 Core 13 | 13 Treads 632 | 632 Legs . | . Wheels 320 | 320 Hover . | . Flight . | . Fastest Speed 50 | 50 Average Speed 136 | 136 Slowest Speed 200 | 200 Overloaded Moves . | . Propulsion Burnouts . | . Robots Hopped . | . Cave-ins Triggered 1 | 1 Exploration Rate (%) 69 | 69 Regions Visited . Branch Regions . Pre-discovered Areas . | . Known Exits Taken . | . Unknown Exits Taken . | . Scrap Searched . | . Spaces Dug 19 | 19 Terrain Destroyed 23 | 23 Melee . | . Projectile 23 | 23 AOE . | . Terrain Rammed . | . Walls Destroyed . | . Machines Disabled . | . Actions | -11 --------- Run | Yrd Total 3070 | 3070 Wait 1938 | 1938 Move 965 | 965 Hop . | . Pick Up 19 | 19 Fast Attach . | . Attach 14 | 14 Detach . | . Swap 4 | 4 Drop 1 | 1 Fire 129 | 129 Melee . | . Ram . | . Kick . | . Crush . | . Escape Stasis . | . Rewire . | . Trap . | . Miscellaneous . | . Route ------- -11/Scrapyard (discovered 1 exit: [*Mat]) History --------- Turn | Location | Event 13 | -11/Scrapyard | Discovered new exit (range 15) 1259 | -11/Scrapyard | Crushed by falling debris 3126 | -11/Scrapyard | Assembled infested the area 3361 | -11/Scrapyard | Core integrity fell below 50% 3377 | -11/Scrapyard | Core integrity fell below 20% 3405 | -11/Scrapyard | Lost 5 parts (2n1u2w) 3728 | -11/Scrapyard | Destroyed by as-05316 with Assembled Heavy Rifle Last Messages --------------- System corrupted: Matter fused (-7). Dropped Lgt. Ion Engine. Acquired Lgt. Ion Engine. EDFHSL=MHSDFQ07QNOJK System corrupted: Component data lost. System corrupted: Matter fused (-7).